fUST/lending_fUST_20250905
["ID","MTS","AMOUNT","RATE_DAILY","PERIOD"]
[383605763,1757026232832,-480.0,0.00015661,2]
[383605764,1757026232841,-480.0,0.00015661,2]
[383605765,1757026232851,-480.0,0.00015661,2]
[383605766,1757026232861,-480.0,0.00015661,2]
[383605767,1757026232871,-480.0,0.00015661,2]
[383605768,1757026232880,-480.0,0.00015661,2]
[383605769,1757026232889,-480.0,0.00015661,2]
[383605770,1757026232900,-480.0,0.00015661,2]
[383605771,1757026232909,-623.64,0.00015661,2]
[383605772,1757026232919,-480.0,0.00015661,2]
[383605773,1757026232929,-480.0,0.00015661,2]
[383605774,1757026232940,-480.0,0.00015661,2]
[383605775,1757026232950,-509.94,0.00015661,2]
[383605776,1757026232960,-480.0,0.00015661,2]
[383605777,1757026232969,-943.56,0.00015661,2]
[383605778,1757026232978,-480.0,0.00015661,2]
[383605779,1757026232989,-527.36,0.00015661,2]
[383605780,1757026233001,-480.0,0.00015661,2]
[383605781,1757026233011,-480.0,0.00015661,2]
[383605782,1757026233020,-480.0,0.00015661,2]
[383605783,1757026233030,-480.0,0.00015661,2]
[383605784,1757026233040,-480.0,0.00015661,2]
[383605785,1757026233050,-480.0,0.00015661,2]
[383605786,1757026233061,-480.0,0.00015661,2]
[383605787,1757026233071,-676.5,0.00015661,2]
[383605788,1757026233081,-480.0,0.00015661,2]
[383605789,1757026233092,-579.6,0.00015661,2]
[383605790,1757026233102,-480.0,0.00015661,2]
[383605791,1757026233112,-480.0,0.00015661,2]
[383605792,1757026233121,-500.0,0.00015663,2]
[383605793,1757026233131,-770.38,0.00015684,3]
[383605794,1757026233140,-385.19,0.00015684,3]
[383605795,1757026233150,-192.59,0.00015684,3]
[383605796,1757026233160,-577.82,0.00015684,3]
[383605797,1757026233170,-616.33,0.00015684,3]
[383605798,1757026233179,-308.15,0.00015684,3]
[383605799,1757026233189,-616.31,0.00015684,3]
[383605800,1757026233199,-205.43,0.00015684,3]
[383605801,1757026233209,-616.32,0.00015684,3]
[383605802,1757026233219,-196.71111965,0.00015693,2]
[383605803,1757026233228,-552.43333072,0.00015693,2]
[383605804,1757026233238,-552.43333072,0.00015693,2]
[383605805,1757026233247,-552.43333072,0.00015693,2]
[383605806,1757026233257,-552.43333072,0.00015693,2]
[383605807,1757026233267,-552.43333072,0.00015693,2]
[383605808,1757026233276,-552.43333072,0.00015693,2]
[383605809,1757026233286,-552.43333072,0.00015693,2]
[383605810,1757026233295,-552.43333072,0.00015693,2]
[383605811,1757026233307,-552.43333072,0.00015693,2]
[383605812,1757026233316,-552.43333072,0.00015693,2]
[383605813,1757026233326,-552.43333072,0.00015693,2]
[383605814,1757026233335,-552.43333072,0.00015693,2]
[383605815,1757026233345,-552.43333072,0.00015693,2]
[383605816,1757026233355,-552.43333072,0.00015693,2]
[383605817,1757026233365,-552.43333072,0.00015693,2]
[383605818,1757026233375,-552.43333072,0.00015693,2]
[383605819,1757026233385,-196.02327234,0.00015693,2]
[383605820,1757026233486,-389.92892143,0.00015693,2]
[383605821,1757026233496,-585.95219377,0.00015693,2]
[383605822,1757026233506,-585.95219377,0.00015693,2]
[383605823,1757026233515,-585.95219377,0.00015693,2]
[383605824,1757026233525,-585.95219377,0.00015693,2]
[383605825,1757026233534,-585.95219377,0.00015693,2]
[383605826,1757026233543,-585.95219377,0.00015693,2]
[383605827,1757026233553,-585.95219377,0.00015693,2]
[383605828,1757026233563,-585.95219377,0.00015693,2]
[383605829,1757026233572,-673.84502284,0.00015693,2]
[383605830,1757026233582,-673.84502284,0.00015693,2]
[383605831,1757026233592,-673.84502284,0.00015693,2]
[383605832,1757026233601,-673.84502284,0.00015693,2]
[383605833,1757026233611,-673.84502284,0.00015693,2]
[383605834,1757026233621,-3528.29024463,0.00015694,2]
[383605835,1757026233631,-40047.58214829,0.00015694,2]
[383605836,1757026237706,-221.90496278,0.0001566,2]
[383605838,1757026237716,-153.41,0.00015661,2]
[383605840,1757026237727,-480.0,0.00015661,2]
[383605842,1757026237736,-500.0,0.00015693,2]
[383605845,1757026237746,-500.0,0.00015693,2]
[383605847,1757026237755,-9056.1949568,0.00015694,2]
[383605849,1757026237767,-3946.6460931,0.00015694,2]
[383605853,1757026237794,-104325.64557955,0.00015694,2]
[383605855,1757026237804,-7339.08659861,0.00015694,2]
[383605857,1757026237814,-151.0,0.00015694,2]
[383605859,1757026237823,-151.0,0.00015694,2]
[383605861,1757026237832,-151.0,0.00015694,2]
[383605863,1757026237842,-162.96,0.00015794,2]
[383605865,1757026237852,-584.38,0.00015794,2]
[383605867,1757026237861,-480.0,0.00015794,2]
[383605869,1757026237870,-480.0,0.00015794,2]
[383605871,1757026237880,-480.0,0.00015794,2]
[383605873,1757026237889,-480.0,0.00015794,2]
[383605875,1757026237898,-332.35,0.00015794,2]
[383605877,1757026237908,-480.0,0.00015794,2]
[383605879,1757026237918,-480.0,0.00015794,2]
[383605881,1757026237928,-186.55579662,0.00015794,2]
[383605883,1757026237937,-480.0,0.00015794,2]
[383605885,1757026237946,-480.0,0.00015794,2]
[383605887,1757026237955,-480.0,0.00015794,2]
[383605889,1757026237964,-480.0,0.00015794,2]
[383605891,1757026237974,-480.0,0.00015794,2]
[383605892,1757026237983,-480.0,0.00015794,2]
[383605893,1757026237992,-480.0,0.00015794,2]
[383605894,1757026238005,-481.52278622,0.00015794,2]
[383605895,1757026238015,-480.0,0.00015794,2]
[383605896,1757026238024,-484.05125708,0.00015794,2]
[383605897,1757026238034,-480.0,0.00015794,2]
[383605898,1757026238045,-480.0,0.00015794,2]
[383605899,1757026238054,-480.0,0.00015794,2]
[383605900,1757026238063,-548.49334807,0.00015794,2]
[383605901,1757026238073,-480.0,0.00015794,2]
[383605902,1757026238083,-480.0,0.00015794,2]
[383605903,1757026238092,-480.0,0.00015794,2]
[383605904,1757026238102,-480.0,0.00015794,2]
[383605905,1757026238111,-480.0,0.00015794,2]
[383605906,1757026238120,-500.0,0.00015794,2]
[383605907,1757026238129,-500.0,0.00015794,2]
[383605908,1757026238139,-480.0,0.00015794,2]
[383605909,1757026238149,-480.0,0.00015794,2]
[383605910,1757026238158,-480.0,0.00015794,2]
[383605911,1757026238168,-480.0,0.00015794,2]
[383605912,1757026238177,-480.0,0.00015794,2]
[383605913,1757026238187,-480.0,0.00015794,2]
[383605914,1757026238197,-487.28601926,0.00015794,2]
[383605915,1757026238206,-480.0,0.00015794,2]
[383605916,1757026238214,-480.0,0.00015794,2]
[383605917,1757026238222,-481.32801457,0.00015794,2]
[383605918,1757026238230,-487.00521783,0.00015794,2]
[383605919,1757026238239,-480.0,0.00015794,2]
[383605920,1757026238247,-481.73385312,0.00015794,2]
[383605921,1757026238256,-480.0,0.00015794,2]
[383605922,1757026238266,-480.0,0.00015794,2]
[383605923,1757026238275,-480.0,0.00015794,2]
[383605924,1757026238284,-480.0,0.00015794,2]
[383605925,1757026238293,-480.0,0.00015794,2]
[383605926,1757026238303,-220.96856204,0.00015794,2]
[383605927,1757026238312,-480.0,0.00015794,2]
[383605928,1757026238321,-480.0,0.00015794,2]
[383605929,1757026238331,-480.0,0.00015794,2]
[383605930,1757026238340,-480.0,0.00015794,2]
[383605931,1757026238349,-480.0,0.00015794,2]
[383605932,1757026238359,-480.0,0.00015794,2]
[383605933,1757026238368,-480.0,0.00015794,2]
[383605934,1757026238378,-480.0,0.00015794,2]
[383605935,1757026238387,-480.0,0.00015794,2]
[383605936,1757026238397,-480.0,0.00015794,2]
[383605937,1757026238407,-480.0,0.00015794,2]
[383605938,1757026238417,-151.0,0.00015794,2]
[383605939,1757026238426,-239.591236,0.00015794,2]
[383605940,1757026238436,-480.0,0.00015794,2]
[383605941,1757026238445,-480.0,0.00015794,2]
[383605942,1757026238455,-153.16349277,0.00015794,2]
[383605943,1757026238464,-480.0,0.00015794,2]
[383605944,1757026238473,-518.21017361,0.00015794,2]
[383605945,1757026238483,-567.37918417,0.00015794,2]
[383605946,1757026238492,-480.0,0.00015794,2]
[383605947,1757026238501,-480.0,0.00015794,2]
[383605948,1757026238511,-480.0,0.00015794,2]
[383605949,1757026238520,-480.0,0.00015794,2]
[383605950,1757026238529,-480.0,0.00015794,2]
[383605951,1757026238539,-480.0,0.00015794,2]
[383605952,1757026238548,-480.0,0.00015794,2]
[383605953,1757026238557,-480.0,0.00015794,2]
[383605954,1757026238567,-480.0,0.00015794,2]
[383605955,1757026238576,-480.0,0.00015794,2]
[383605956,1757026238585,-480.0,0.00015794,2]
[383605957,1757026238595,-480.0,0.00015794,2]
[383605958,1757026238604,-480.0,0.00015794,2]
[383605959,1757026238614,-530.45,0.00015794,2]
[383605960,1757026238623,-480.0,0.00015794,2]
[383605961,1757026238632,-480.0,0.00015794,2]
[383605962,1757026238642,-480.0,0.00015794,2]
[383605963,1757026238652,-500.0,0.00015795,2]
[383605964,1757026238661,-500.0,0.00015795,2]
[383605965,1757026238671,-961.88661312,0.00015822,2]
[383605966,1757026238680,-480.0,0.00015934,2]
[383605967,1757026238690,-504.18,0.00015934,2]
[383605968,1757026238699,-202.86,0.00015934,2]
[383605969,1757026238708,-480.0,0.00015934,2]
[383605970,1757026238841,-480.0,0.00015934,2]
[383605971,1757026238852,-540.77838065,0.00015934,2]
[383605972,1757026238863,-480.0,0.00015934,2]
[383605973,1757026238874,-212.86,0.00015934,2]
[383605974,1757026238884,-210.69,0.00015934,2]
[383605975,1757026238896,-489.76,0.00015934,2]
[383605976,1757026238908,-480.0,0.00015934,2]
[383605977,1757026238918,-480.0,0.00015934,2]
[383605978,1757026238928,-480.0,0.00015934,2]
[383605979,1757026238937,-480.0,0.00015934,2]
[383605980,1757026238946,-480.0,0.00015934,2]
[383605981,1757026238956,-480.0,0.00015934,2]
[383605982,1757026238965,-480.0,0.00015934,2]
[383605983,1757026238975,-480.0,0.00015934,2]
[383605984,1757026238984,-480.0,0.00015934,2]
[383605985,1757026238994,-480.0,0.00015934,2]
[383605986,1757026239007,-151.0,0.00015934,2]
[383605987,1757026239017,-480.0,0.00015935,2]
[383605988,1757026239026,-480.0,0.00015935,2]
[383605989,1757026239035,-480.0,0.00015935,2]
[383605990,1757026239044,-480.0,0.00015935,2]
[383605991,1757026239053,-480.0,0.00015935,2]
[383605992,1757026239062,-480.0,0.00015935,2]
[383605993,1757026239073,-480.0,0.00015935,2]
[383605994,1757026239082,-480.0,0.00015935,2]
[383605995,1757026239092,-166.81,0.00015935,2]
[383605996,1757026239102,-480.0,0.00015935,2]
[383605997,1757026239111,-480.0,0.00015935,2]
[383605998,1757026239121,-480.0,0.00015935,2]
[383605999,1757026239131,-480.0,0.00015935,2]
[383606000,1757026239140,-480.0,0.00015935,2]
[383606001,1757026239151,-480.0,0.00015935,2]
[383606002,1757026239160,-480.0,0.00015935,2]
[383606003,1757026239170,-480.0,0.00015935,2]
[383606004,1757026239179,-480.0,0.00015935,2]
[383606005,1757026239189,-480.0,0.00015935,2]
[383606006,1757026239199,-480.0,0.00015935,2]
[383606007,1757026239208,-480.0,0.00015935,2]
[383606008,1757026239217,-480.0,0.00015935,2]
[383606009,1757026239227,-480.0,0.00015935,2]
[383606010,1757026239236,-578.0,0.00015935,2]
[383606011,1757026239246,-480.0,0.00015935,2]
[383606012,1757026239255,-480.0,0.00015935,2]
[383606013,1757026239265,-480.0,0.00015935,2]
[383606014,1757026239275,-480.0,0.00015935,2]
[383606015,1757026239284,-480.0,0.00015935,2]
[383606016,1757026239293,-480.0,0.00015935,2]
[383606017,1757026239303,-151.0,0.00015935,2]
[383606018,1757026239313,-480.0,0.00015935,2]
[383606019,1757026239322,-480.0,0.00015935,2]
[383606020,1757026239332,-480.0,0.00015935,2]
[383606021,1757026239341,-623.64,0.00015935,2]
[383606022,1757026239351,-480.0,0.00015935,2]
[383606023,1757026239360,-480.0,0.00015935,2]
[383606024,1757026239370,-480.0,0.00015935,2]
[383606025,1757026239380,-509.94,0.00015935,2]
[383606026,1757026239390,-943.56,0.00015935,2]
[383606027,1757026239399,-480.0,0.00015935,2]
[383606028,1757026239411,-480.0,0.00015935,2]
[383606029,1757026239420,-480.0,0.00015935,2]
[383606031,1757026239431,-554.32,0.00015935,2]
[383606033,1757026239440,-514.12,0.00015935,2]
[383606035,1757026239450,-676.5,0.00015935,2]
[383606038,1757026239460,-555.53,0.00015935,2]
[383606040,1757026239470,-579.6,0.00015935,2]
[383606042,1757026239479,-163.81908211,0.00015935,2]
[383606044,1757026239489,-480.0,0.00015935,2]
[383606046,1757026239499,-480.0,0.00015935,2]
[383606048,1757026239508,-250.0,0.00015937,2]
[383606050,1757026239518,-961.88661312,0.00016059,2]
[383606051,1757026239527,-572.76,0.00016068,2]
[383606052,1757026239537,-313.06,0.00016068,2]
[383606053,1757026239546,-520.0165151,0.00016068,2]
[383606054,1757026239556,-480.0,0.00016068,2]
[383606055,1757026239565,-480.0,0.00016068,2]
[383606056,1757026239575,-480.0,0.00016068,2]
[383606057,1757026239584,-530.99,0.00016068,2]
[383606058,1757026239594,-480.0,0.00016068,2]
[383606059,1757026239604,-480.0,0.00016068,2]
[383606060,1757026239613,-334.51292463,0.00016068,2]
[383606061,1757026239622,-559.21,0.00016068,2]
[383606062,1757026239632,-480.0,0.00016068,2]
[383606064,1757026239641,-480.0,0.00016068,2]
[383606066,1757026239651,-480.0,0.00016068,2]
[383606068,1757026239661,-500.0,0.00016068,2]
[383606070,1757026239671,-480.0,0.00016068,2]
[383606072,1757026239680,-480.0,0.00016068,2]
[383606074,1757026239690,-480.0,0.00016068,2]
[383606076,1757026239699,-480.0,0.00016068,2]
[383606078,1757026239709,-480.0,0.00016068,2]
[383606080,1757026239719,-480.0,0.00016068,2]
[383606082,1757026239729,-480.0,0.00016068,2]
[383606084,1757026239739,-519.71,0.00016068,2]
[383606086,1757026239749,-480.0,0.00016068,2]
[383606088,1757026239759,-480.0,0.00016068,2]
[383606090,1757026239769,-187.69223325,0.00016068,2]
[383606092,1757026239778,-1000.0,0.00016068,2]
[383606094,1757026239788,-1000.0,0.00016068,2]
[383606096,1757026239799,-151.0,0.00016068,2]
[383606097,1757026239810,-1000.0,0.00016068,2]
[383606098,1757026239819,-1000.0,0.00016068,2]
[383606099,1757026239829,-234.70078661,0.00016068,2]
[383606101,1757026239840,-151.0,0.00016068,2]
[383606103,1757026239849,-480.0,0.00016068,2]
[383606105,1757026239860,-480.0,0.00016068,2]
[383606107,1757026239870,-480.0,0.00016068,2]
[383606109,1757026239880,-480.0,0.00016068,2]
[383606111,1757026239889,-343.78262941,0.00016069,2]
[383606113,1757026239899,-409.78,0.00016208,2]
[383606115,1757026239909,-490.11,0.00016208,2]
[383606117,1757026239919,-480.0,0.00016208,2]
[383606118,1757026239928,-480.0,0.00016208,2]
[383606119,1757026239938,-480.0,0.00016208,2]
[383606120,1757026239949,-480.0,0.00016208,2]
[383606121,1757026239959,-480.0,0.00016208,2]
[383606122,1757026239969,-480.0,0.00016208,2]
[383606123,1757026239978,-541.52,0.00016208,2]
[383606124,1757026239988,-480.0,0.00016208,2]
[383606125,1757026239998,-480.0,0.00016208,2]
[383606126,1757026240010,-480.0,0.00016209,2]
[383606127,1757026240019,-312.8,0.00016209,2]
[383606128,1757026240029,-480.0,0.00016209,2]
[383606129,1757026240038,-480.0,0.00016209,2]
[383606130,1757026240048,-293.34439729,0.00016209,2]
[383606131,1757026240058,-180.98794671,0.00016209,2]
[383606132,1757026240067,-480.0,0.00016209,2]
[383606133,1757026240077,-271.25,0.00016209,2]
[383606134,1757026240088,-480.0,0.00016209,2]
[383606135,1757026240099,-480.0,0.00016209,2]
[383606136,1757026240108,-480.0,0.00016209,2]
[383606137,1757026240118,-480.0,0.00016209,2]
[383606138,1757026240127,-480.0,0.00016209,2]
[383606139,1757026240136,-480.0,0.00016209,2]
[383606140,1757026240147,-287.95626978,0.00016209,2]
[383606141,1757026240159,-480.0,0.00016209,2]
[383606142,1757026240170,-480.0,0.00016209,2]
[383606143,1757026240179,-578.0,0.00016209,2]
[383606144,1757026240188,-480.0,0.00016209,2]
[383606145,1757026240198,-480.0,0.00016209,2]
[383606146,1757026240207,-480.0,0.00016209,2]
[383606147,1757026240217,-480.0,0.00016209,2]
[383606148,1757026240226,-480.0,0.00016209,2]
[383606149,1757026240235,-480.0,0.00016209,2]
[383606150,1757026240245,-480.0,0.00016209,2]
[383606151,1757026240254,-623.64,0.00016209,2]
[383606152,1757026240264,-480.0,0.00016209,2]
[383606153,1757026240274,-573.9,0.00016209,2]
[383606154,1757026240283,-509.94,0.00016209,2]
[383606155,1757026240292,-943.56,0.00016209,2]
[383606156,1757026240303,-480.0,0.00016209,2]
[383606157,1757026240314,-480.0,0.00016209,2]
[383606158,1757026240324,-480.0,0.00016209,2]
[383606159,1757026240334,-676.5,0.00016209,2]
[383606160,1757026240345,-579.6,0.00016209,2]
[383606161,1757026240355,-151.0,0.00016209,2]
[383606162,1757026240365,-480.0,0.00016209,2]
[383606163,1757026240374,-480.0,0.00016209,2]
[383606164,1757026240383,-500.0,0.00016255,2]
[383606165,1757026240392,-4447.6676413,0.00016258,2]
[383606166,1757026240402,-961.88661312,0.00016297,2]
[383606167,1757026240412,-500.0,0.00016298,2]
[383606168,1757026240422,-500.0,0.00016298,2]
[383606169,1757026240431,-500.0,0.00016298,2]
[383606170,1757026240440,-500.0,0.00016333,2]
[383606171,1757026240450,-500.0,0.00016333,2]
[383606172,1757026240459,-500.0,0.00016333,2]
[383606173,1757026240468,-480.0,0.00016342,2]
[383606174,1757026240478,-480.0,0.00016342,2]
[383606175,1757026240487,-480.0,0.00016342,2]
[383606176,1757026240496,-480.0,0.00016342,2]
[383606177,1757026240506,-480.0,0.00016342,2]
[383606178,1757026240515,-180.0,0.00016362,2]
[383606179,1757026240526,-500.0,0.00016362,2]
[383606180,1757026240538,-292.0,0.00016362,2]
[383606181,1757026240547,-180.0,0.00016362,2]
[383606182,1757026240558,-296.0,0.00016362,2]
[383606183,1757026240568,-157.0,0.00016362,2]
[383606184,1757026240578,-302.0,0.00016362,2]
[383606185,1757026240588,-302.0,0.00016362,2]
[383606186,1757026240598,-44933.7853719,0.00016364,2]
[383606187,1757026240607,-264.645396,0.00016364,2]
[383606188,1757026240617,-486.6460932,0.00016391,2]
[383606189,1757026240627,-34018.5861135,0.00016391,2]
[383606190,1757026240637,-2107.3906638,0.00016391,2]
[383606191,1757026240648,-188.10297854,0.00016438,2]
[383606192,1757026240660,-153.898817,0.00016438,2]
[383606193,1757026240671,-500.78631096,0.00016438,2]
[383606194,1757026240682,-432.56640123,0.00016456,2]
[383606195,1757026240692,-500.0,0.0001648,2]
[383606196,1757026240702,-480.0,0.00016482,2]
[383606197,1757026240712,-480.0,0.00016482,2]
[383606198,1757026240722,-480.0,0.00016482,2]
[383606199,1757026240732,-480.0,0.00016482,2]
[383606200,1757026240743,-480.0,0.00016482,2]
[383606201,1757026240753,-480.0,0.00016482,2]
[383606202,1757026240763,-480.0,0.00016482,2]
[383606203,1757026240774,-481.24843507,0.00016483,2]
[383606204,1757026240785,-442.24477664,0.00016483,2]
[383606205,1757026240795,-480.0,0.00016483,2]
[383606206,1757026240806,-480.0,0.00016483,2]
[383606207,1757026240816,-480.0,0.00016483,2]
[383606208,1757026240825,-480.0,0.00016483,2]
[383606209,1757026240835,-480.0,0.00016483,2]
[383606210,1757026240845,-480.0,0.00016483,2]
[383606211,1757026240854,-480.0,0.00016483,2]
[383606212,1757026240864,-578.0,0.00016483,2]
[383606213,1757026240873,-480.0,0.00016483,2]
[383606214,1757026240882,-480.0,0.00016483,2]
[383606215,1757026240892,-480.0,0.00016483,2]
[383606216,1757026240902,-480.0,0.00016483,2]
[383606217,1757026240911,-480.0,0.00016483,2]
[383606218,1757026240922,-623.64,0.00016483,2]
[383606219,1757026240931,-509.94,0.00016483,2]
[383606220,1757026240942,-943.56,0.00016483,2]
[383606221,1757026240952,-480.0,0.00016483,2]
[383606222,1757026240961,-480.0,0.00016483,2]
[383606223,1757026240971,-676.5,0.00016483,2]
[383606224,1757026240980,-579.6,0.00016483,2]
[383606225,1757026240989,-480.0,0.00016483,2]
[383606226,1757026241002,-500.0,0.00016527,2]
[383606227,1757026241011,-500.0,0.00016527,2]
[383606228,1757026241020,-961.88661312,0.00016534,2]
[383606229,1757026241031,-21310.90491633,0.00016556,2]
[383606230,1757026241040,-207.153874,0.00016556,2]
[383606231,1757026241049,-500.0,0.00016598,2]
[383606232,1757026241058,-480.0,0.00016616,2]
[383606233,1757026241067,-554.467478,0.00016616,2]
[383606234,1757026241077,-480.0,0.00016616,2]
[383606235,1757026241087,-166.49093637,0.00016616,2]
[383606236,1757026241096,-160.0,0.00016629,2]
[383606237,1757026241105,-504.1131352,0.00016634,2]
[383606238,1757026241115,-500.0,0.00016636,2]
[383606239,1757026241124,-236.6153923,0.00016636,2]
[383606240,1757026241134,-200.64869876,0.00016753,2]
[383606241,1757026241144,-875.8555848,0.00016754,2]
[383606242,1757026241155,-480.0,0.00016756,2]
[383606243,1757026241164,-480.0,0.00016756,2]
[383606244,1757026241174,-161.04887008,0.00016756,2]
[383606245,1757026241184,-480.0,0.00016756,2]
[383606246,1757026241194,-303.45,0.00016756,2]
[383606247,1757026241204,-480.0,0.00016756,2]
[383606248,1757026241214,-480.0,0.00016756,2]
[383606249,1757026241224,-480.0,0.00016756,2]
[383606250,1757026241234,-509.94,0.00016756,2]
[383606251,1757026241244,-480.0,0.00016756,2]
[383606252,1757026241282,-480.0,0.00016756,2]
[383606253,1757026241292,-943.56,0.00016756,2]
[383606254,1757026241303,-480.0,0.00016756,2]
[383606255,1757026241312,-480.0,0.00016756,2]
[383606256,1757026241322,-480.0,0.00016756,2]
[383606257,1757026241331,-480.0,0.00016756,2]
[383606258,1757026241340,-480.0,0.00016756,2]
[383606259,1757026241351,-676.5,0.00016756,2]
[383606260,1757026241360,-579.6,0.00016756,2]
[383606261,1757026241370,-480.0,0.00016756,2]
[383606262,1757026241379,-427.7807,0.00016757,2]
[383606263,1757026241388,-480.0,0.00016757,2]
[383606264,1757026241398,-578.0,0.00016757,2]
[383606265,1757026241407,-480.0,0.00016757,2]
[383606266,1757026241417,-480.0,0.00016757,2]
[383606267,1757026241427,-623.64,0.00016757,2]
[383606268,1757026241436,-1000.0,0.00016803,2]
[383606269,1757026241446,-1000.0,0.00016846,2]
[383606270,1757026241456,-1000.0,0.00016846,2]
[383606271,1757026241466,-1000.0,0.00016846,2]
[383606272,1757026241475,-500.0,0.00016881,2]
[383606273,1757026241484,-1000.0,0.00016881,2]
[383606274,1757026241493,-1117.49000262,0.00016881,2]
[383606275,1757026241502,-151.0,0.00016889,2]
[383606276,1757026241512,-480.0,0.0001689,2]
[383606277,1757026241521,-165.08620056,0.00016893,2]
[383606278,1757026241530,-500.0,0.0001691,2]
[383606279,1757026241540,-310.0,0.00017023,2]
[383606280,1757026241549,-480.0,0.0001703,2]
[383606281,1757026241558,-480.0,0.0001703,2]
[383606282,1757026241566,-480.0,0.0001703,2]
[383606283,1757026241576,-481.02,0.0001703,2]
[383606284,1757026241585,-480.0,0.0001703,2]
[383606285,1757026241595,-480.0,0.0001703,2]
[383606286,1757026241604,-509.94,0.0001703,2]
[383606287,1757026241613,-603.31964346,0.0001703,2]
[383606288,1757026241623,-480.0,0.0001703,2]
[383606289,1757026241633,-943.56,0.0001703,2]
[383606290,1757026241642,-480.0,0.0001703,2]
[383606291,1757026241652,-480.0,0.0001703,2]
[383606292,1757026241661,-480.0,0.0001703,2]
[383606293,1757026241670,-480.0,0.0001703,2]
[383606294,1757026241679,-480.0,0.0001703,2]
[383606295,1757026241690,-676.5,0.0001703,2]
[383606296,1757026241699,-579.6,0.0001703,2]
[383606297,1757026241708,-480.0,0.00017031,2]
[383606298,1757026241717,-578.0,0.00017031,2]
[383606299,1757026241727,-480.0,0.00017031,2]
[383606300,1757026241736,-480.0,0.00017031,2]
[383606301,1757026241746,-623.64,0.00017031,2]
[383606302,1757026241755,-1540.76,0.00017054,3]
[383606303,1757026241764,-770.38,0.00017054,3]
[383606304,1757026241774,-385.18,0.00017054,3]
[383606305,1757026241783,-410.86,0.00017054,3]
[383606306,1757026241792,-1000.0,0.00017074,2]
[383606307,1757026241802,-420.0,0.00017123,2]
[383606308,1757026241811,-480.0,0.00017164,2]
[383606309,1757026241820,-260.0,0.00017177,2]
[383606310,1757026241830,-500.0,0.00017184,2]
[383606311,1757026241839,-341.3878176,0.00017205,2]
[383606312,1757026241850,-480.0,0.00017304,2]
[383606313,1757026241859,-395.6423415,0.00017304,2]
[383606314,1757026241868,-480.0,0.00017304,2]
[383606315,1757026241878,-480.0,0.00017304,2]
[383606316,1757026241889,-509.94,0.00017304,2]
[383606317,1757026241898,-480.0,0.00017304,2]
[383606318,1757026241908,-943.56,0.00017304,2]
[383606319,1757026241918,-480.0,0.00017304,2]
[383606320,1757026241927,-480.0,0.00017304,2]
[383606321,1757026241937,-480.0,0.00017304,2]
[383606322,1757026241948,-480.0,0.00017304,2]
[383606323,1757026241957,-480.0,0.00017304,2]
[383606324,1757026241966,-676.5,0.00017304,2]
[383606325,1757026241976,-579.6,0.00017304,2]
[383606326,1757026241985,-480.0,0.00017305,2]
[383606327,1757026241995,-578.0,0.00017305,2]
[383606328,1757026242008,-480.0,0.00017305,2]